fUSD/lending_fUSD_20260103
["ID","MTS","AMOUNT","RATE_DAILY","PERIOD"]
[400345598,1767403835356,272.24510143,0.00043045,120]
[400345600,1767403837799,-216.10862503,0.00031501,2]
[400345601,1767403837810,-186.97337497,0.00031501,2]
[400345602,1767403837823,-313.02662503,0.00031501,2]
[400345603,1767403837834,-500.0,0.00031501,2]
[400345604,1767403837844,-500.0,0.00031501,2]
[400345605,1767403837854,-3.19372277,0.00031501,2]
[400345606,1767403837914,-513.46651266,0.00031501,2]
[400345607,1767403838037,-24.59725267,0.00031501,2]
[400345608,1767403838049,-500.0,0.00031501,2]
[400345609,1767403838059,-500.0,0.00031501,2]
[400345610,1767403838070,-500.0,0.00031501,2]
[400345611,1767403838080,-500.0,0.00031501,2]
[400345612,1767403838090,-458.5206891,0.00031501,2]
[400345613,1767403838102,-41.4793109,0.00031501,2]
[400345614,1767403838113,-500.0,0.00031501,2]
[400345615,1767403838124,-500.0,0.00031501,2]
[400345616,1767403838134,-500.0,0.00031501,2]
[400345617,1767403838149,-166.9528586,0.00031501,2]
[400345618,1767403838160,-500.0,0.00031501,2]
[400345619,1767403838171,-500.0,0.00031501,2]
[400345620,1767403838183,-500.0,0.00031501,2]
[400345621,1767403838194,-33312.9033321,0.00031502,2]
[400345622,1767403838206,-1343.07308045,0.00031502,2]
[400345652,1767403838932,174.08577382,0.00043045,120]
[400345678,1767403839953,-5381.08095703,0.00031502,2]
[400345679,1767403840232,-730.82090758,0.00031502,2]
[400345680,1767403840245,-303.8399955,0.00031502,2]
[400345681,1767403840340,-694356.14391342,0.00031502,2]
[400345683,1767403840350,-458.30790392,0.00031537,4]
[400345685,1767403840360,-222.0,0.00031562,2]
[400345686,1767403840370,-150.0,0.00031574,2]
[400345687,1767403840380,-150.0,0.00031574,2]
[400345688,1767403840390,-200.0,0.00031574,2]
[400345689,1767403840400,-500.0,0.00031574,2]
[400345690,1767403840410,-150.0,0.00031574,2]
[400345691,1767403840420,-150.0,0.00031574,2]
[400345692,1767403840430,-150.0,0.00031574,2]
[400345693,1767403840440,-250.0,0.00031574,2]
[400345694,1767403840450,-4105.0224,0.00031602,2]
[400345696,1767403840460,-2500.0,0.00031602,2]
[400345716,1767403840679,-7931.73902269,0.00031611,2]
[400345717,1767403840691,-458.30790392,0.00031611,4]
[400345718,1767403840701,-1137.712,0.00031622,29]
[400345719,1767403840712,-162.475,0.00031622,29]
[400345720,1767403840721,-195.66875627,0.00031622,18]
[400345721,1767403840731,-30297.2347933,0.00031692,3]
[400345722,1767403840741,-151.4,0.00031692,2]
[400345723,1767403840750,-192.56109622,0.00031692,2]
[400345724,1767403840760,-500.0,0.00031702,2]
[400345725,1767403840770,-500.0,0.00031702,30]
[400345726,1767403840779,-500.0,0.00031702,30]
[400345727,1767403840789,-325695.274028,0.00031702,3]
[400345728,1767403840799,-249.62704522,0.00031711,2]
[400345729,1767403840809,-170.07019094,0.00031711,2]
[400345730,1767403840819,-500.0,0.00031711,2]
[400345731,1767403840829,-250.0,0.00031711,2]
[400345732,1767403840839,-250.0,0.00031711,2]
[400345733,1767403840849,-1055.65988893,0.00031711,15]
[400345734,1767403840859,-1061.80560835,0.00031711,15]
[400345735,1767403840868,-500.0,0.00031712,30]
[400345736,1767403840878,-500.0,0.00031712,30]
[400345737,1767403840889,-500.0,0.00031712,30]
[400345738,1767403840899,-179.12422391,0.00031722,2]
[400345739,1767403840908,-5806.5671,0.00031822,2]
[400345740,1767403840919,-1000.0,0.00031822,2]
[400345741,1767403840929,-999.0,0.00031839,3]
[400345742,1767403840938,-500.0,0.00031848,2]
[400345743,1767403840950,-1277.93671824,0.00031948,2]
[400345744,1767403840960,-500.0,0.0003216,2]
[400345745,1767403840970,-890.34983316,0.000323,2]
[400345746,1767403840980,-150.11,0.00032487,2]
[400345747,1767403840990,-200.0,0.00032726,14]
[400345748,1767403841000,-200.0,0.00032726,14]
[400345749,1767403841010,-4808.94363595,0.000328,2]
[400345750,1767403841021,-7931.73902261,0.00032865,2]
[400345751,1767403841031,-181.61,0.00033,14]
[400345752,1767403841041,-193.36,0.00033,14]
[400345753,1767403841051,-1907.90335055,0.00033,2]
[400345754,1767403841061,-152.90178293,0.00033,2]
[400345755,1767403841072,-1206.25834594,0.000335,2]
[400345756,1767403841082,-179.12422391,0.00033593,2]
[400345757,1767403841092,-2423.73,0.00033844,10]
[400345758,1767403841102,-152.06299069,0.00033943,2]
[400345759,1767403841112,-1000.0,0.00033981,2]
[400345760,1767403841121,-325.73358732,0.00034,2]
[400345761,1767403841131,-7931.73902261,0.0003412,2]
[400345762,1767403841143,-150.11,0.00034398,2]
[400345763,1767403841154,-1724.29733764,0.0003449,2]
[400345764,1767403841164,-267.94,0.00034593,30]
[400345765,1767403841174,-1909.75302216,0.00035,2]
[400345766,1767403841185,-276.0884,0.0003522,30]
[400345767,1767403841195,-7931.73902261,0.00035374,2]
[400345768,1767403841204,-179.12422391,0.00035463,2]
[400345769,1767403841214,-195.40230819,0.00035616,36]
[400345770,1767403841224,-150.0,0.00035923,2]
[400345771,1767403841233,-150.0,0.00035923,2]
[400345772,1767403841243,-277.16438568,0.00036,2]
[400345773,1767403841252,-4495.11,0.00036095,2]
[400345774,1767403841262,-5000.0,0.00036197,2]
[400345775,1767403841271,-2303.18208645,0.00036235,2]
[400345776,1767403841281,-3984.39616337,0.00036235,2]
[400345777,1767403841290,-796.2658854,0.00036235,2]
[400345778,1767403841300,-150.11,0.00036309,2]
[400345779,1767403841310,-1250.0,0.00036318,2]
[400345780,1767403841319,-5000.0,0.00036318,2]
[400345781,1767403841329,-151.4,0.00036442,2]
[400345782,1767403841339,-2500.0,0.00036452,2]
[400345783,1767403841348,-2558.0,0.00036541,2]
[400345784,1767403841358,-7931.73902261,0.00036628,2]
[400345785,1767403841367,-6738.24004232,0.00036636,2]
[400345786,1767403841376,-5000.0,0.00036694,2]
[400345787,1767403841386,-268.43,0.00036707,120]
[400345788,1767403841396,-2500.0,0.00036709,2]
[400345789,1767403841405,-5000.0,0.00036734,2]
[400345790,1767403841417,-5000.0,0.00036795,2]
[400345791,1767403841426,-5000.0,0.00036881,2]
[400345792,1767403841437,-193.36,0.000369,14]
[400345793,1767403841447,-187.97768291,0.000372,120]
[400345794,1767403841456,-195.66875626,0.00037284,26]
[400345795,1767403841466,-179.12422391,0.00037334,2]
[400345796,1767403841475,-1000.0,0.00037756,2]
[400345797,1767403841485,-7931.73902261,0.00037883,2]
[400345798,1767403841495,-6738.24004232,0.00037892,2]
[400345799,1767403841504,-5000.0,0.00038204,2]
[400345800,1767403841514,-150.11,0.0003822,2]
[400345801,1767403841523,-303.85501722,0.00038738,2]
[400345802,1767403841532,-595.88867019,0.00038738,2]
[400345803,1767403841542,-364.48459935,0.00038738,2]
[400345804,1767403841551,-300.0,0.00038738,2]
[400345805,1767403841561,-537.12337987,0.00038738,2]
[400345806,1767403841570,-303.47175408,0.00038738,2]
[400345807,1767403841580,-578.04560059,0.00038738,2]
[400345808,1767403841590,-304.64549813,0.00038738,2]
[400345809,1767403841599,-615.94778257,0.00038738,2]
[400345810,1767403841609,-303.85501722,0.00038738,2]
[400345811,1767403841619,-595.88867019,0.00038738,2]
[400345812,1767403841629,-364.48459935,0.00038738,2]
[400345813,1767403841638,-300.0,0.00038738,2]
[400345814,1767403841648,-303.47175408,0.00038738,2]
[400345815,1767403841657,-578.04560059,0.00038738,2]
[400345816,1767403841667,-615.94778257,0.00038738,2]
[400345817,1767403841676,-304.64549813,0.00038738,2]
[400345818,1767403841685,-267.94,0.00038918,120]
[400345819,1767403841695,-7931.73902261,0.00039137,2]
[400345820,1767403841704,-6738.24004232,0.00039148,2]
[400345821,1767403841714,-179.12422391,0.00039204,2]
[400345822,1767403841724,-249.91,0.00039836,14]
[400345823,1767403841733,-200.0,0.00039959,2]
[400345824,1767403841743,-207.4,0.00039959,2]
[400345825,1767403841752,-215.0738,0.00039959,2]
[400345826,1767403841762,-153.30092776,0.00039959,2]
[400345827,1767403841772,-374.88,0.00039972,14]
[400345828,1767403841781,-152.0,0.0004,120]
[400345829,1767403841790,-151.0,0.0004,120]
[400345830,1767403841800,-160.70938277,0.0004,2]
[400345831,1767403841809,-575.85,0.0004,120]
[400345832,1767403841820,-291.08,0.0004,120]
[400345833,1767403841830,-507.0,0.00040045,10]
[400345834,1767403841840,-150.11,0.00040131,2]
[400345835,1767403841850,-7931.73902261,0.00040391,15]
[400345836,1767403841859,-6738.24004232,0.00040405,15]
[400345837,1767403841869,-1265.0,0.00040493,2]
[400345838,1767403841878,-433.0,0.00040493,2]
[400345839,1767403841888,-1329.0,0.00040493,2]
[400345840,1767403841897,-615.062,0.00040493,2]
[400345841,1767403841906,-4814.0,0.00040493,2]
[400345842,1767403841916,-152.0,0.000407,120]
[400345843,1767403841925,-151.0,0.000407,120]
[400345844,1767403841935,-212.623612,0.00040729,15]
[400345845,1767403841945,-212.623612,0.00040729,15]
[400345846,1767403841955,-212.623612,0.00040729,15]
[400345847,1767403841965,-212.623612,0.00040729,15]
[400345848,1767403841974,-268.43,0.00040786,120]
[400345849,1767403841985,-179.12422391,0.00041075,2]
[400345850,1767403841995,-1034.43,0.00041075,2]
[400345851,1767403842005,-999.0,0.00041095,120]
[400345852,1767403842015,-306.99554682,0.00041096,2]
[400345853,1767403842025,-153.0,0.00041096,30]
[400345854,1767403842034,-325.67051365,0.00041096,54]
[400345855,1767403842044,-500.0,0.00041096,31]
[400345856,1767403842054,-500.0,0.00041096,31]
[400345857,1767403842064,-500.0,0.00041096,31]
[400345858,1767403842074,-500.0,0.00041096,31]
[400345859,1767403842084,-500.0,0.00041096,31]
[400345860,1767403842094,-500.0,0.00041096,31]
[400345861,1767403842103,-173.15398347,0.00041096,31]
[400345862,1767403842112,-193.36,0.000411,14]
[400345863,1767403842123,-489.47,0.00041123,30]
[400345864,1767403842132,-507.0,0.00041186,10]
[400345865,1767403842144,-181.8,0.00041397,30]
[400345866,1767403842154,-476.44,0.00041397,30]
[400345867,1767403842163,-304.54,0.00041397,30]
[400345868,1767403842173,-151.0,0.000414,120]
[400345869,1767403842183,-1000.0,0.00041413,60]
[400345870,1767403842193,-500.0,0.00041413,60]
[400345871,1767403842203,-600.0,0.00041413,60]
[400345872,1767403842212,-152.0,0.000415,120]
[400345873,1767403842222,-1000.0,0.00041532,2]
[400345874,1767403842231,-7931.73902261,0.00041646,15]
[400345875,1767403842241,-6738.24004232,0.00041661,15]
[400345876,1767403842250,-1859.2903408,0.00041746,7]
[400345877,1767403842260,-689.93,0.00041797,30]
[400345878,1767403842269,-150.62,0.00041945,30]
[400345879,1767403842278,-1000.0,0.00041961,60]
[400345880,1767403842287,-600.0,0.00041961,60]
[400345881,1767403842297,-168.0,0.00042023,2]
[400345882,1767403842307,-150.11,0.00042042,2]
[400345883,1767403842316,-500.0,0.00042057,7]
[400345884,1767403842326,-500.0,0.00042057,7]
[400345885,1767403842335,-500.0,0.00042057,7]
[400345886,1767403842344,-500.0,0.00042057,7]
[400345887,1767403842354,-508.2,0.00042057,7]
[400345888,1767403842363,-151.0,0.00042057,28]
[400345889,1767403842372,-151.0,0.00042057,28]
[400345890,1767403842381,-151.0,0.00042057,28]
[400345891,1767403842391,-151.0,0.00042057,28]
[400345892,1767403842400,-151.0,0.00042082,7]
[400345893,1767403842409,-222.318321,0.00042082,7]
[400345894,1767403842419,-152.778924,0.00042082,14]
[400345895,1767403842429,-151.0,0.00042082,120]
[400345896,1767403842439,-151.0,0.00042082,10]
[400345897,1767403842449,-151.0,0.00042082,10]
[400345898,1767403842459,-151.0,0.00042082,10]
[400345899,1767403842468,-660.52,0.00042082,30]
[400345900,1767403842477,-660.52,0.00042082,30]
[400345901,1767403842486,-482.01,0.00042082,30]
[400345902,1767403842495,-162.72,0.00042082,30]
[400345903,1767403842505,-660.52,0.00042082,30]
[400345904,1767403842514,-660.52,0.00042082,30]
[400345905,1767403842524,-660.52,0.00042082,30]
[400345906,1767403842533,-288.7,0.00042082,30]
[400345907,1767403842542,-660.52,0.00042082,30]
[400345908,1767403842552,-482.01,0.00042082,30]
[400345909,1767403842561,-660.52,0.00042082,30]
[400345910,1767403842570,-670.69,0.00042082,30]
[400345911,1767403842580,-151.0,0.000421,120]
[400345912,1767403842589,-557.08,0.00042183,30]
[400345913,1767403842598,-999.0,0.00042191,120]
[400345914,1767403842607,-152.0,0.000422,120]
[400345915,1767403842617,-407.85,0.000422,120]
[400345916,1767403842627,-240.4,0.00042219,30]
[400345917,1767403842636,-209.71,0.00042219,30]
[400345919,1767403842646,-178.8,0.00042219,30]
[400345921,1767403842656,-465.87,0.00042219,30]
[400345922,1767403842665,-150.0,0.00042219,30]
[400345923,1767403842675,-178.8,0.00042219,30]
[400345924,1767403842684,-465.87,0.00042219,30]
[400345925,1767403842694,-150.0,0.00042219,30]
[400345926,1767403842703,-177.03,0.00042219,30]
[400345927,1767403842712,-222.05,0.00042219,30]
[400345928,1767403842722,-150.0,0.00042219,30]
[400345929,1767403842732,-150.0,0.00042219,30]
[400345930,1767403842742,-150.0,0.00042219,30]
[400345931,1767403842751,-150.0,0.00042219,30]
[400345932,1767403842761,-150.0,0.00042219,30]
[400345933,1767403842771,-178.8,0.00042219,30]
[400345934,1767403842780,-1124.22,0.00042219,30]
[400345935,1767403842790,-1222.64,0.00042219,30]
[400345936,1767403842799,-171.08,0.00042219,30]
[400345937,1767403842809,-150.0,0.00042219,30]
[400345938,1767403842819,-300.0,0.00042219,30]
[400345939,1767403842830,-465.64,0.00042219,30]
[400345940,1767403842839,-171.08,0.00042219,30]
[400345941,1767403842849,-150.0,0.00042219,30]
[400345942,1767403842859,-151.52,0.00042219,30]
[400345943,1767403842868,-173.61,0.00042219,30]
[400345944,1767403842878,-507.0,0.00042328,10]
[400345945,1767403842887,-601.38,0.0004241,12]
[400345946,1767403842897,-152.06299069,0.00042429,2]
[400345947,1767403842907,-240.4,0.00042493,30]
[400345948,1767403842918,-1500.0,0.000425,2]
[400345949,1767403842928,-500.0,0.00042501,30]
[400345950,1767403842937,-500.0,0.00042501,30]
[400345951,1767403842947,-500.0,0.00042501,30]
[400345952,1767403842956,-1000.0,0.00042509,60]
[400345953,1767403842967,-600.0,0.00042509,60]
[400345954,1767403842977,-500.0,0.00042509,60]
[400345955,1767403842987,-324.36553,0.0004261,120]
[400345956,1767403842997,-324.36553,0.0004261,120]
[400345957,1767403843008,-324.36553,0.0004261,120]
[400345958,1767403843017,-324.36553,0.0004261,120]
[400345959,1767403843027,-324.36552,0.0004261,120]
[400345960,1767403843036,-151.0,0.000427,120]
[400345961,1767403843046,-240.4,0.00042767,30]
[400345962,1767403843057,-668.98,0.00042789,120]
[400345963,1767403843066,-602.53231379,0.00042789,120]
[400345964,1767403843076,-245.38,0.00042789,120]
[400345965,1767403843086,-673.18,0.00042789,120]
[400345966,1767403843095,-690.09,0.00042789,120]
[400345967,1767403843105,-251.93,0.00042789,120]
[400345968,1767403843115,-261.65608182,0.00042789,120]
[400345969,1767403843125,-388.46976974,0.00042789,120]
[400345970,1767403843134,-300.0,0.000428,2]
[400345971,1767403843147,-300.0,0.00042856,2]
[400345972,1767403843157,-300.0,0.00042864,2]
[400345973,1767403843167,-300.0,0.00042872,2]
[400345974,1767403843177,-7931.73902261,0.000429,15]
[400345975,1767403843187,-175.71265842,0.000429,8]
[400345976,1767403843196,-1921.66195579,0.000429,2]
[400345977,1767403843206,-5202.0,0.00042907,7]
[400345978,1767403843217,-1921.66195578,0.00042909,2]
[400345979,1767403843226,-6738.24004232,0.00042917,15]
[400345980,1767403843235,-4028.5990578,0.00042918,2]
[400345981,1767403843245,-1921.66195578,0.00042918,2]
[400345982,1767403843254,-151.4,0.00042922,2]
[400345983,1767403843264,-1921.66195578,0.00042927,2]
[400345984,1767403843273,-151.0,0.00042929,120]
[400345985,1767403843283,-166745.9613265,0.00042932,2]
[400345986,1767403843292,-11797.6914772,0.00042932,2]
[400345987,1767403843301,-68848.1550313,0.00042932,2]
[400345988,1767403843311,-14761.2486018,0.00042932,2]
[400345989,1767403843320,-212.623612,0.00042932,15]
[400345990,1767403843329,-212.623612,0.00042932,15]
[400345991,1767403843340,-212.623612,0.00042932,15]
[400345992,1767403843350,-212.623612,0.00042932,15]
[400345993,1767403843360,-151.0,0.00042932,120]
[400345994,1767403843369,-151.0,0.00042932,7]
[400345995,1767403843378,-151.0,0.00042932,10]
[400345996,1767403843388,-151.0,0.00042932,10]
[400345997,1767403843397,-151.0,0.00042932,10]
[400345998,1767403843407,-151.0,0.00042932,28]
[400345999,1767403843417,-151.0,0.00042932,28]
[400346001,1767403843427,-151.0,0.00042932,28]
[400346003,1767403843436,-151.0,0.00042932,28]
[400346005,1767403843447,-1921.66195578,0.00042936,2]
[400346006,1767403843456,-300.0,0.00042938,2]
[400346007,1767403843465,-10000.0,0.00042938,2]
[400346008,1767403843475,-1675.0956,0.00042941,120]
[400346010,1767403843484,-179.12422391,0.00042945,9]
[400346012,1767403843494,-195.66875626,0.00042945,30]
[400346013,1767403843503,-1921.66195578,0.00042945,2]
[400346014,1767403843511,-300.0,0.0004296,2]
[400346015,1767403843520,-150.0,0.00042973,60]
[400346016,1767403843529,-150.0,0.00042973,2]
[400346017,1767403843540,-314.89987668,0.00042986,2]
[400346018,1767403843550,-150.0,0.00042986,30]
[400346019,1767403843559,-150.0,0.00042986,30]
[400346020,1767403843568,-150.0,0.00042986,30]
[400346021,1767403843578,-150.0,0.00042986,30]
[400346022,1767403843588,-150.0,0.00042986,30]
[400346023,1767403843597,-150.55633321,0.00042986,30]
[400346024,1767403843607,-270.7355794,0.00042986,30]
[400346025,1767403843617,-150.0,0.00042986,30]
[400346026,1767403843627,-150.0,0.00042986,30]
[400346027,1767403843636,-150.0,0.00042986,30]
[400346028,1767403843646,-150.0,0.00042986,30]
[400346029,1767403843655,-150.0,0.00042986,30]
[400346030,1767403843666,-151.4,0.0004299,2]
[400346031,1767403843676,-151.4,0.0004299,2]
[400346032,1767403843686,-151.4,0.0004299,2]
[400346033,1767403843695,-151.4,0.0004299,2]
[400346034,1767403843704,-151.4,0.0004299,2]
[400346035,1767403843714,-151.4,0.0004299,2]
[400346036,1767403843723,-151.4,0.0004299,2]
[400346037,1767403843732,-151.4,0.0004299,2]
[400346038,1767403843742,-151.4,0.0004299,2]
[400346039,1767403843751,-151.4,0.0004299,2]
[400346040,1767403843760,-151.4,0.0004299,2]
[400346041,1767403843769,-151.4,0.0004299,2]
[400346042,1767403843779,-151.4,0.0004299,2]
[400346043,1767403843789,-192.56109622,0.0004299,7]
[400346044,1767403843798,-192.56109622,0.0004299,7]
[400346045,1767403843807,-150.0,0.00042991,30]
[400346046,1767403843817,-150.0,0.00042992,30]
[400346047,1767403843826,-300.0,0.00042994,2]
[400346048,1767403843835,-150.0,0.00042995,30]
[400346049,1767403843844,-151.0,0.00042997,120]
[400346050,1767403843854,-150.0,0.00042998,120]
[400346051,1767403843863,-150.0,0.00042998,30]
[400346052,1767403843873,-300.0,0.00042999,30]
[400346053,1767403843883,-666.0,0.00042999,30]
[400346054,1767403843893,-152.0,0.00043,120]
[400346055,1767403843902,-193.36,0.00043,14]
[400346056,1767403843911,-160.06,0.00043,60]
[400346057,1767403843921,-150.0,0.00043,27]
[400346058,1767403843931,-253.0,0.00043,41]
[400346059,1767403843940,-134799.4932506,0.00043,120]
[400346060,1767403844091,402.86101886,0.00043045,120]
[400346061,1767403844161,-324.97946918,0.00040493,2]
[400346062,1767403844173,-940.372799,0.00040493,2]
[400346063,1767403844186,-138.64773182,0.00040493,2]
[400346064,1767403844196,-660.52,0.00042082,30]
[400346065,1767403844207,-171.08,0.00042219,30]
[400346066,1767403844216,-28.75226818,0.00042219,30]
[400346067,1767403844228,-121.24773182,0.00042219,30]
[400346068,1767403844238,-264.05028665,0.00042795,120]
[400346069,1767403844247,-595149.2343551,0.00043,120]
[400346070,1767403844259,-1298.815382,0.00043,120]
[400346071,1767403844271,-50867.64815594,0.00043,120]
[400346072,1767403844338,249.23179335,0.00043045,120]
[400346073,1767403844503,364.93393561,0.00043045,120]
[400346079,1767403845844,-48024.21179469,0.00043,120]
[400346080,1767403845960,-12987.63151196,0.00043,120]
[400346081,1767403846089,-261410.55128618,0.00043,120]
[400346082,1767403846101,-5000.0,0.00043,120]
[400346083,1767403846112,-7195.2887203,0.00043,120]
[400346084,1767403846123,-1103.9066385,0.00043,120]
[400346085,1767403851519,152.62540089,0.00043045,120]
[400346086,1767403852827,162.21653165,0.00043045,120]
[400346087,1767403854222,187.00868157,0.00043045,120]
[400346088,1767403856803,205.41407246,0.00043045,120]
[400346089,1767403856922,178.39509812,0.00043045,120]
[400346090,1767403857446,298.03642175,0.00043045,120]
[400346091,1767403858537,592.57004532,0.00043045,30]
[400346092,1767403860576,150.33051197,0.00043045,120]
[400346093,1767403863879,385.29905727,0.00043045,120]
[400346094,1767403867740,300.27236544,0.00043045,120]
[400346095,1767403868026,174.78496111,0.00043045,120]
[400346096,1767403869045,193.01251804,0.00043045,120]
[400346097,1767403873546,155.45141804,0.00043045,120]
[400346098,1767403880256,282.77642531,0.00043045,120]
[400346099,1767403882316,210.11238137,0.00043045,120]
[400346100,1767403890254,500.0,0.00043045,120]
[400346101,1767403890457,179.3042449,0.00043045,120]
[400346102,1767403903808,203.48460469,0.00043045,120]
[400346103,1767403904622,154.73564307,0.00043045,120]
[400346104,1767403906806,174.60479057,0.00043045,120]
[400346105,1767403906840,233.99948907,0.00043045,120]
[400346106,1767403907943,157.89476366,0.00043045,120]
[400346107,1767403910202,150.23209212,0.00043045,120]
[400346108,1767403912497,162.90108626,0.00043045,30]
[400346109,1767403920682,181.10488001,0.00043045,120]
[400346110,1767403922566,158.28369592,0.00043045,120]
[400346111,1767403932085,197.154678,0.00043045,120]
[400346112,1767403933967,190.82739077,0.00043045,120]
[400346113,1767403934863,160.03980056,0.00043045,120]
[400346114,1767403937897,314.13343367,0.00043045,120]
[400346115,1767403938636,213.83943813,0.00043045,120]
[400346116,1767403938674,500.0,0.00043045,120]
[400346117,1767403938903,500.0,0.00043045,120]
[400346118,1767403939138,603.37674556,0.00043045,120]
[400346119,1767403940412,447.9512,0.00043045,120]
[400346120,1767403942107,386.00404459,0.00043045,120]
[400346121,1767403947916,500.0,0.00043045,120]
[400346122,1767403948179,500.0,0.00043045,120]
[400346123,1767403948446,178.55101128,0.00043045,120]
[400346124,1767403948537,304.98886214,0.00043045,120]
[400346125,1767403951518,252.0,0.00043045,120]
[400346126,1767403954387,198.83972507,0.00043045,120]
[400346127,1767403959428,500.0,0.00043045,120]
[400346128,1767403959715,342.48805089,0.00043045,120]
[400346129,1767403963464,386.0372529,0.00043045,120]
[400346130,1767403964310,156.66220892,0.00043045,120]
[400346131,1767403966790,165.59484338,0.00043045,120]
[400346132,1767403970962,245.98183871,0.00043045,120]
[400346133,1767403972742,181.43929414,0.00043045,120]
[400346134,1767403974562,224.89828767,0.00043045,120]
[400346135,1767403976234,198.38889711,0.00043045,120]
[400346136,1767403978625,302.67539566,0.00043045,120]
[400346137,1767403982519,163.29775084,0.00043045,120]
[400346138,1767403984305,215.58857243,0.00043045,120]
[400346139,1767403984959,500.0,0.00043045,120]
[400346140,1767403985199,304.73866589,0.00043045,120]
[400346141,1767403985891,319.27533883,0.00043045,120]
[400346142,1767403988538,205.66837793,0.00043045,120]
[400346143,1767403989816,161.81254593,0.00043045,120]
[400346144,1767403992587,394.51332904,0.00043045,120]
[400346145,1767403992841,174.9286653,0.00043045,120]
[400346146,1767403993897,191.87522913,0.00043045,120]
[400346147,1767403994614,173.86506798,0.00043045,120]
[400346148,1767404002330,165.86940641,0.00043045,120]
[400346149,1767404004247,475.94897087,0.00043045,120]
[400346150,1767404006092,209.979986,0.00043045,120]
[400346151,1767404008078,349.50875099,0.00043045,120]
[400346152,1767404009796,500.0,0.00043045,120]
[400346153,1767404010106,551.58158685,0.00043045,120]
[400346154,1767404016710,171.69828734,0.00043045,120]
[400346155,1767404021871,196.06417351,0.00043045,120]
[400346156,1767404023962,624.79053853,0.00043045,120]
[400346157,1767404024491,200.82623745,0.00043045,120]
[400346158,1767404025516,344.47821972,0.00043045,120]
[400346159,1767404027360,367.27046537,0.00043045,120]
[400346160,1767404029598,168.53029757,0.00043045,120]
[400346161,1767404032042,428.09698784,0.00043045,120]
[400346162,1767404032268,156.84447395,0.00043045,60]
[400346163,1767404033918,612.1237291,0.00043045,120]
[400346164,1767404034903,231.64269959,0.00043045,120]
[400346165,1767404036344,154.14880849,0.00043045,120]
[400346166,1767404041097,160.55888039,0.00043045,120]
[400346167,1767404041221,182.45711978,0.00043045,120]
[400346168,1767404042970,199.82679343,0.00043045,120]
[400346170,1767404049910,286.65045352,0.00043045,120]
[400346171,1767404056799,447.37992302,0.00043045,120]
[400346172,1767404057675,191.23212869,0.00043045,60]
[400346173,1767404061293,162.46514246,0.00043045,120]
[400346174,1767404063572,150.77425941,0.00043045,120]
[400346175,1767404071128,153.03046008,0.00043045,120]
[400346176,1767404072209,162.22350639,0.00043045,120]
[400346177,1767404080657,204.31571951,0.00043045,120]
[400346178,1767404085328,174.3115411,0.00043045,120]
[400346179,1767404087806,173.8791286,0.00043045,120]
[400346180,1767404089542,168.34600298,0.00043045,120]
[400346181,1767404092915,162.29416098,0.00043045,120]
[400346182,1767404094811,163.98153389,0.00043045,120]
[400346183,1767404101218,158.83794574,0.00043045,120]
[400346184,1767404106405,1259.5863302,0.00043045,30]
[400346185,1767404137718,197.73309485,0.00043045,120]
[400346186,1767404145027,172.35966133,0.00043045,120]
[400346187,1767404151118,166.54644575,0.00043045,120]